{"text_format":"3","workbook":"xlsx","n_sheets":3,"sheets":["Dados de Clientes em Potencial","Vendas Previstas ","Previsão Ponderada Mensal"],"not_rendered":{"charts":1,"defined_names":10},"read":"whole","date_system":"1900"}

{"sheet":"Dados de Clientes em Potencial","index":0,"n_rows":9,"n_cols":10,"rows_kept":9,"merged":[[3,1,3,8]]}
[null,"Nome da empresa"]
[null,"Gerenciador Detalhado de Clientes em Potencial"]
[null,{"$f":"TODAY()","v":"2018-05-21"}]
[null,{"$f":"Nome_Empresa","v":"Nome da empresa"},{"$nulls":7},"INFORMAÇÕES CONFIDENCIAIS"]
[null,"Nome do Cliente em Potencial","Contato do Cliente em Potencial","Fonte do  \nCliente em Potencial","Região do  \nCliente em Potencial","Tipo do  \nCliente em Potencial","Possível Oportunidade","Oportunidade \n de Venda","Fim  \nda Previsão","Previsão  Ponderada"]
[null,"A. Datum Corporation",{"$nulls":3},"Estratégico",{"v":300000,"d":"R$ 300,000.00"},{"v":0.9,"d":"90%"},"Janeiro",{"$f":"IFERROR(IF(DadosClientesPotencial[Oportunidade \n de Venda]<>\"\",DadosClientesPotencial[Oportunidade \n de Venda]*DadosClientesPotencial[Possível Oportunidade],\"\"),\"\")","v":{"v":270000,"d":"R$ 270,000.00"}}]
[null,"Adventure Works",{"$nulls":3},"Estratégico",{"v":200000,"d":"R$ 200,000.00"},{"v":0.1,"d":"10%"},"Fevereiro",{"$f":"IFERROR(IF(DadosClientesPotencial[Oportunidade \n de Venda]<>\"\",DadosClientesPotencial[Oportunidade \n de Venda]*DadosClientesPotencial[Possível Oportunidade],\"\"),\"\")","v":{"v":20000,"d":"R$ 20,000.00"}}]
[null,"Alpine Ski House",{"$nulls":3},"Tático",{"v":100000,"d":"R$ 100,000.00"},{"v":0.2,"d":"20%"},"Março",{"$f":"IFERROR(IF(DadosClientesPotencial[Oportunidade \n de Venda]<>\"\",DadosClientesPotencial[Oportunidade \n de Venda]*DadosClientesPotencial[Possível Oportunidade],\"\"),\"\")","v":{"v":20000,"d":"R$ 20,000.00"}}]
[null,"Total",{"$nulls":4},{"$f":"SUBTOTAL(109,DadosClientesPotencial[Possível Oportunidade])","v":{"v":600000,"d":"R$ 600,000.00"}},null,null,{"$f":"SUBTOTAL(109,DadosClientesPotencial[Previsão  Ponderada])","v":{"v":310000,"d":"R$ 310,000.00"}}]

{"sheet":"Vendas Previstas ","index":1,"n_rows":21,"n_cols":14,"rows_kept":21,"merged":[[3,1,3,11],[3,12,3,13]]}
[null,{"$f":"Nome_Empresa","v":"Nome da empresa"}]
[null,"Vendas Previstas"]
[null,{"$f":"DataMonitor","v":"2018-05-21"}]
[null,{"$f":"Nome_Empresa","v":"Nome da empresa"},{"$nulls":10},"INFORMAÇÕES CONFIDENCIAIS"]
[null,"Nome do cliente em potencial","Previsão para  \njaneiro","Previsão para  \nfevereiro","Previsão para  \nmarço","Previsão para  \nabril","Previsão para  \nmaio","Previsão para  \njunho","Previsão para julho","Previsão para  \nagosto","Previsão para  \nsetembro","Setembro para  \noutubro","Previsão para  \nnovembro","Previsão para  \ndezembro"]
[null,{"$f":"IFERROR(IF(AND(DadosClientesPotencial[Nome do Cliente em Potencial] <> \"\", ROW(PrevisãoVendas[Nome do cliente em potencial])<>ÚltimaEntrada),DadosClientesPotencial[Nome do Cliente em Potencial], \"\"),\"\")","v":"A. Datum Corporation"},{"$f":"IFERROR(IF(DadosClientesPotencial[Fim  \nda Previsão] <>\"\",IF(DadosClientesPotencial[Fim  \nda Previsão]= \"Janeiro\",DadosClientesPotencial[Previsão  Ponderada],0),\"\"),\"\")","v":{"v":270000,"d":"R$ 270,000"}},{"$f":"IFERROR(IF(DadosClientesPotencial[Fim  \nda Previsão] <>\"\",IF(DadosClientesPotencial[Fim  \nda Previsão] = \"Fevereiro\",DadosClientesPotencial[Previsão  Ponderada],0),\"\"),\"\")","v":{"v":0,"d":"R$ 0"}},{"$f":"IFERROR(IF(DadosClientesPotencial[Fim  \nda Previsão] <>\"\",IF(DadosClientesPotencial[Fim  \nda Previsão] = \"Março\",DadosClientesPotencial[Previsão  Ponderada],0),\"\"),\"\")","v":{"v":0,"d":"R$ 0"}},{"$f":"IFERROR(IF(DadosClientesPotencial[Fim  \nda Previsão] <>\"\",IF(DadosClientesPotencial[Fim  \nda Previsão] = \"Abril\",DadosClientesPotencial[Previsão  Ponderada],0),\"\"),\"\")","v":{"v":0,"d":"R$ 0"}},{"$f":"IFERROR(IF(DadosClientesPotencial[Fim  \nda Previsão] <>\"\",IF(DadosClientesPotencial[Fim  \nda Previsão] = \"Maio\",DadosClientesPotencial[Previsão  Ponderada],0),\"\"),\"\")","v":{"v":0,"d":"R$ 0"}},{"$f":"IFERROR(IF(DadosClientesPotencial[Fim  \nda Previsão] <>\"\",IF(DadosClientesPotencial[Fim  \nda Previsão] = \"Junho\",DadosClientesPotencial[Previsão  Ponderada],0),\"\"),\"\")","v":{"v":0,"d":"R$ 0"}},{"$f":"IFERROR(IF(DadosClientesPotencial[Fim  \nda Previsão] <>\"\",IF(DadosClientesPotencial[Fim  \nda Previsão] = \"Julho\",DadosClientesPotencial[Previsão  Ponderada],0),\"\"),\"\")","v":{"v":0,"d":"R$ 0"}},{"$f":"IFERROR(IF(DadosClientesPotencial[Fim  \nda Previsão] <>\"\",IF(DadosClientesPotencial[Fim  \nda Previsão] = \"Agosto\",DadosClientesPotencial[Previsão  Ponderada],0),\"\"),\"\")","v":{"v":0,"d":"R$ 0"}},{"$f":"IFERROR(IF(DadosClientesPotencial[Fim  \nda Previsão] <>\"\",IF(DadosClientesPotencial[Fim  \nda Previsão] = \"Setembro\",DadosClientesPotencial[Previsão  Ponderada],0),\"\"),\"\")","v":{"v":0,"d":"R$ 0"}},{"$f":"IFERROR(IF(DadosClientesPotencial[Fim  \nda Previsão] <>\"\",IF(DadosClientesPotencial[Fim  \nda Previsão] = \"Outubro\",DadosClientesPotencial[Previsão  Ponderada],0),\"\"),\"\")","v":{"v":0,"d":"R$ 0"}},{"$f":"IFERROR(IF(DadosClientesPotencial[Fim  \nda Previsão] <>\"\",IF(DadosClientesPotencial[Fim  \nda Previsão] = \"Novembro\",DadosClientesPotencial[Previsão  Ponderada],0),\"\"),\"\")","v":{"v":0,"d":"R$ 0"}},{"$f":"IFERROR(IF(DadosClientesPotencial[Fim  \nda Previsão] <>\"\",IF(DadosClientesPotencial[Fim  \nda Previsão] = \"Dezembro\",DadosClientesPotencial[Previsão  Ponderada],0),\"\"),\"\")","v":{"v":0,"d":"R$ 0"}}]
[null,{"$f":"IFERROR(IF(AND(DadosClientesPotencial[Nome do Cliente em Potencial] <> \"\", ROW(PrevisãoVendas[Nome do cliente em potencial])<>ÚltimaEntrada),DadosClientesPotencial[Nome do Cliente em Potencial], \"\"),\"\")","v":"Adventure Works"},{"$f":"IFERROR(IF(DadosClientesPotencial[Fim  \nda Previsão] <>\"\",IF(DadosClientesPotencial[Fim  \nda Previsão]= \"Janeiro\",DadosClientesPotencial[Previsão  Ponderada],0),\"\"),\"\")","v":{"v":0,"d":"R$ 0"}},{"$f":"IFERROR(IF(DadosClientesPotencial[Fim  \nda Previsão] <>\"\",IF(DadosClientesPotencial[Fim  \nda Previsão] = \"Fevereiro\",DadosClientesPotencial[Previsão  Ponderada],0),\"\"),\"\")","v":{"v":20000,"d":"R$ 20,000"}},{"$f":"IFERROR(IF(DadosClientesPotencial[Fim  \nda Previsão] <>\"\",IF(DadosClientesPotencial[Fim  \nda Previsão] = \"Março\",DadosClientesPotencial[Previsão  Ponderada],0),\"\"),\"\")","v":{"v":0,"d":"R$ 0"}},{"$f":"IFERROR(IF(DadosClientesPotencial[Fim  \nda Previsão] <>\"\",IF(DadosClientesPotencial[Fim  \nda Previsão] = \"Abril\",DadosClientesPotencial[Previsão  Ponderada],0),\"\"),\"\")","v":{"v":0,"d":"R$ 0"}},{"$f":"IFERROR(IF(DadosClientesPotencial[Fim  \nda Previsão] <>\"\",IF(DadosClientesPotencial[Fim  \nda Previsão] = \"Maio\",DadosClientesPotencial[Previsão  Ponderada],0),\"\"),\"\")","v":{"v":0,"d":"R$ 0"}},{"$f":"IFERROR(IF(DadosClientesPotencial[Fim  \nda Previsão] <>\"\",IF(DadosClientesPotencial[Fim  \nda Previsão] = \"Junho\",DadosClientesPotencial[Previsão  Ponderada],0),\"\"),\"\")","v":{"v":0,"d":"R$ 0"}},{"$f":"IFERROR(IF(DadosClientesPotencial[Fim  \nda Previsão] <>\"\",IF(DadosClientesPotencial[Fim  \nda Previsão] = \"Julho\",DadosClientesPotencial[Previsão  Ponderada],0),\"\"),\"\")","v":{"v":0,"d":"R$ 0"}},{"$f":"IFERROR(IF(DadosClientesPotencial[Fim  \nda Previsão] <>\"\",IF(DadosClientesPotencial[Fim  \nda Previsão] = \"Agosto\",DadosClientesPotencial[Previsão  Ponderada],0),\"\"),\"\")","v":{"v":0,"d":"R$ 0"}},{"$f":"IFERROR(IF(DadosClientesPotencial[Fim  \nda Previsão] <>\"\",IF(DadosClientesPotencial[Fim  \nda Previsão] = \"Setembro\",DadosClientesPotencial[Previsão  Ponderada],0),\"\"),\"\")","v":{"v":0,"d":"R$ 0"}},{"$f":"IFERROR(IF(DadosClientesPotencial[Fim  \nda Previsão] <>\"\",IF(DadosClientesPotencial[Fim  \nda Previsão] = \"Outubro\",DadosClientesPotencial[Previsão  Ponderada],0),\"\"),\"\")","v":{"v":0,"d":"R$ 0"}},{"$f":"IFERROR(IF(DadosClientesPotencial[Fim  \nda Previsão] <>\"\",IF(DadosClientesPotencial[Fim  \nda Previsão] = \"Novembro\",DadosClientesPotencial[Previsão  Ponderada],0),\"\"),\"\")","v":{"v":0,"d":"R$ 0"}},{"$f":"IFERROR(IF(DadosClientesPotencial[Fim  \nda Previsão] <>\"\",IF(DadosClientesPotencial[Fim  \nda Previsão] = \"Dezembro\",DadosClientesPotencial[Previsão  Ponderada],0),\"\"),\"\")","v":{"v":0,"d":"R$ 0"}}]
[null,{"$f":"IFERROR(IF(AND(DadosClientesPotencial[Nome do Cliente em Potencial] <> \"\", ROW(PrevisãoVendas[Nome do cliente em potencial])<>ÚltimaEntrada),DadosClientesPotencial[Nome do Cliente em Potencial], \"\"),\"\")","v":"Alpine Ski House"},{"$f":"IFERROR(IF(DadosClientesPotencial[Fim  \nda Previsão] <>\"\",IF(DadosClientesPotencial[Fim  \nda Previsão]= \"Janeiro\",DadosClientesPotencial[Previsão  Ponderada],0),\"\"),\"\")","v":{"v":0,"d":"R$ 0"}},{"$f":"IFERROR(IF(DadosClientesPotencial[Fim  \nda Previsão] <>\"\",IF(DadosClientesPotencial[Fim  \nda Previsão] = \"Fevereiro\",DadosClientesPotencial[Previsão  Ponderada],0),\"\"),\"\")","v":{"v":0,"d":"R$ 0"}},{"$f":"IFERROR(IF(DadosClientesPotencial[Fim  \nda Previsão] <>\"\",IF(DadosClientesPotencial[Fim  \nda Previsão] = \"Março\",DadosClientesPotencial[Previsão  Ponderada],0),\"\"),\"\")","v":{"v":20000,"d":"R$ 20,000"}},{"$f":"IFERROR(IF(DadosClientesPotencial[Fim  \nda Previsão] <>\"\",IF(DadosClientesPotencial[Fim  \nda Previsão] = \"Abril\",DadosClientesPotencial[Previsão  Ponderada],0),\"\"),\"\")","v":{"v":0,"d":"R$ 0"}},{"$f":"IFERROR(IF(DadosClientesPotencial[Fim  \nda Previsão] <>\"\",IF(DadosClientesPotencial[Fim  \nda Previsão] = \"Maio\",DadosClientesPotencial[Previsão  Ponderada],0),\"\"),\"\")","v":{"v":0,"d":"R$ 0"}},{"$f":"IFERROR(IF(DadosClientesPotencial[Fim  \nda Previsão] <>\"\",IF(DadosClientesPotencial[Fim  \nda Previsão] = \"Junho\",DadosClientesPotencial[Previsão  Ponderada],0),\"\"),\"\")","v":{"v":0,"d":"R$ 0"}},{"$f":"IFERROR(IF(DadosClientesPotencial[Fim  \nda Previsão] <>\"\",IF(DadosClientesPotencial[Fim  \nda Previsão] = \"Julho\",DadosClientesPotencial[Previsão  Ponderada],0),\"\"),\"\")","v":{"v":0,"d":"R$ 0"}},{"$f":"IFERROR(IF(DadosClientesPotencial[Fim  \nda Previsão] <>\"\",IF(DadosClientesPotencial[Fim  \nda Previsão] = \"Agosto\",DadosClientesPotencial[Previsão  Ponderada],0),\"\"),\"\")","v":{"v":0,"d":"R$ 0"}},{"$f":"IFERROR(IF(DadosClientesPotencial[Fim  \nda Previsão] <>\"\",IF(DadosClientesPotencial[Fim  \nda Previsão] = \"Setembro\",DadosClientesPotencial[Previsão  Ponderada],0),\"\"),\"\")","v":{"v":0,"d":"R$ 0"}},{"$f":"IFERROR(IF(DadosClientesPotencial[Fim  \nda Previsão] <>\"\",IF(DadosClientesPotencial[Fim  \nda Previsão] = \"Outubro\",DadosClientesPotencial[Previsão  Ponderada],0),\"\"),\"\")","v":{"v":0,"d":"R$ 0"}},{"$f":"IFERROR(IF(DadosClientesPotencial[Fim  \nda Previsão] <>\"\",IF(DadosClientesPotencial[Fim  \nda Previsão] = \"Novembro\",DadosClientesPotencial[Previsão  Ponderada],0),\"\"),\"\")","v":{"v":0,"d":"R$ 0"}},{"$f":"IFERROR(IF(DadosClientesPotencial[Fim  \nda Previsão] <>\"\",IF(DadosClientesPotencial[Fim  \nda Previsão] = \"Dezembro\",DadosClientesPotencial[Previsão  Ponderada],0),\"\"),\"\")","v":{"v":0,"d":"R$ 0"}}]
[null,{"$f":"IFERROR(IF(AND(DadosClientesPotencial[Nome do Cliente em Potencial] <> \"\", ROW(PrevisãoVendas[Nome do cliente em potencial])<>ÚltimaEntrada),DadosClientesPotencial[Nome do Cliente em Potencial], \"\"),\"\")","v":""},{"$f":"IFERROR(IF(DadosClientesPotencial[Fim  \nda Previsão] <>\"\",IF(DadosClientesPotencial[Fim  \nda Previsão]= \"Janeiro\",DadosClientesPotencial[Previsão  Ponderada],0),\"\"),\"\")","v":""},{"$f":"IFERROR(IF(DadosClientesPotencial[Fim  \nda Previsão] <>\"\",IF(DadosClientesPotencial[Fim  \nda Previsão] = \"Fevereiro\",DadosClientesPotencial[Previsão  Ponderada],0),\"\"),\"\")","v":""},{"$f":"IFERROR(IF(DadosClientesPotencial[Fim  \nda Previsão] <>\"\",IF(DadosClientesPotencial[Fim  \nda Previsão] = \"Março\",DadosClientesPotencial[Previsão  Ponderada],0),\"\"),\"\")","v":""},{"$f":"IFERROR(IF(DadosClientesPotencial[Fim  \nda Previsão] <>\"\",IF(DadosClientesPotencial[Fim  \nda Previsão] = \"Abril\",DadosClientesPotencial[Previsão  Ponderada],0),\"\"),\"\")","v":""},{"$f":"IFERROR(IF(DadosClientesPotencial[Fim  \nda Previsão] <>\"\",IF(DadosClientesPotencial[Fim  \nda Previsão] = \"Maio\",DadosClientesPotencial[Previsão  Ponderada],0),\"\"),\"\")","v":""},{"$f":"IFERROR(IF(DadosClientesPotencial[Fim  \nda Previsão] <>\"\",IF(DadosClientesPotencial[Fim  \nda Previsão] = \"Junho\",DadosClientesPotencial[Previsão  Ponderada],0),\"\"),\"\")","v":""},{"$f":"IFERROR(IF(DadosClientesPotencial[Fim  \nda Previsão] <>\"\",IF(DadosClientesPotencial[Fim  \nda Previsão] = \"Julho\",DadosClientesPotencial[Previsão  Ponderada],0),\"\"),\"\")","v":""},{"$f":"IFERROR(IF(DadosClientesPotencial[Fim  \nda Previsão] <>\"\",IF(DadosClientesPotencial[Fim  \nda Previsão] = \"Agosto\",DadosClientesPotencial[Previsão  Ponderada],0),\"\"),\"\")","v":""},{"$f":"IFERROR(IF(DadosClientesPotencial[Fim  \nda Previsão] <>\"\",IF(DadosClientesPotencial[Fim  \nda Previsão] = \"Setembro\",DadosClientesPotencial[Previsão  Ponderada],0),\"\"),\"\")","v":""},{"$f":"IFERROR(IF(DadosClientesPotencial[Fim  \nda Previsão] <>\"\",IF(DadosClientesPotencial[Fim  \nda Previsão] = \"Outubro\",DadosClientesPotencial[Previsão  Ponderada],0),\"\"),\"\")","v":""},{"$f":"IFERROR(IF(DadosClientesPotencial[Fim  \nda Previsão] <>\"\",IF(DadosClientesPotencial[Fim  \nda Previsão] = \"Novembro\",DadosClientesPotencial[Previsão  Ponderada],0),\"\"),\"\")","v":""},{"$f":"IFERROR(IF(DadosClientesPotencial[Fim  \nda Previsão] <>\"\",IF(DadosClientesPotencial[Fim  \nda Previsão] = \"Dezembro\",DadosClientesPotencial[Previsão  Ponderada],0),\"\"),\"\")","v":""}]
[null,{"$f":"IFERROR(IF(AND(DadosClientesPotencial[Nome do Cliente em Potencial] <> \"\", ROW(PrevisãoVendas[Nome do cliente em potencial])<>ÚltimaEntrada),DadosClientesPotencial[Nome do Cliente em Potencial], \"\"),\"\")","v":""},{"$f":"IFERROR(IF(DadosClientesPotencial[Fim  \nda Previsão] <>\"\",IF(DadosClientesPotencial[Fim  \nda Previsão]= \"Janeiro\",DadosClientesPotencial[Previsão  Ponderada],0),\"\"),\"\")","v":""},{"$f":"IFERROR(IF(DadosClientesPotencial[Fim  \nda Previsão] <>\"\",IF(DadosClientesPotencial[Fim  \nda Previsão] = \"Fevereiro\",DadosClientesPotencial[Previsão  Ponderada],0),\"\"),\"\")","v":""},{"$f":"IFERROR(IF(DadosClientesPotencial[Fim  \nda Previsão] <>\"\",IF(DadosClientesPotencial[Fim  \nda Previsão] = \"Março\",DadosClientesPotencial[Previsão  Ponderada],0),\"\"),\"\")","v":""},{"$f":"IFERROR(IF(DadosClientesPotencial[Fim  \nda Previsão] <>\"\",IF(DadosClientesPotencial[Fim  \nda Previsão] = \"Abril\",DadosClientesPotencial[Previsão  Ponderada],0),\"\"),\"\")","v":""},{"$f":"IFERROR(IF(DadosClientesPotencial[Fim  \nda Previsão] <>\"\",IF(DadosClientesPotencial[Fim  \nda Previsão] = \"Maio\",DadosClientesPotencial[Previsão  Ponderada],0),\"\"),\"\")","v":""},{"$f":"IFERROR(IF(DadosClientesPotencial[Fim  \nda Previsão] <>\"\",IF(DadosClientesPotencial[Fim  \nda Previsão] = \"Junho\",DadosClientesPotencial[Previsão  Ponderada],0),\"\"),\"\")","v":""},{"$f":"IFERROR(IF(DadosClientesPotencial[Fim  \nda Previsão] <>\"\",IF(DadosClientesPotencial[Fim  \nda Previsão] = \"Julho\",DadosClientesPotencial[Previsão  Ponderada],0),\"\"),\"\")","v":""},{"$f":"IFERROR(IF(DadosClientesPotencial[Fim  \nda Previsão] <>\"\",IF(DadosClientesPotencial[Fim  \nda Previsão] = \"Agosto\",DadosClientesPotencial[Previsão  Ponderada],0),\"\"),\"\")","v":""},{"$f":"IFERROR(IF(DadosClientesPotencial[Fim  \nda Previsão] <>\"\",IF(DadosClientesPotencial[Fim  \nda Previsão] = \"Setembro\",DadosClientesPotencial[Previsão  Ponderada],0),\"\"),\"\")","v":""},{"$f":"IFERROR(IF(DadosClientesPotencial[Fim  \nda Previsão] <>\"\",IF(DadosClientesPotencial[Fim  \nda Previsão] = \"Outubro\",DadosClientesPotencial[Previsão  Ponderada],0),\"\"),\"\")","v":""},{"$f":"IFERROR(IF(DadosClientesPotencial[Fim  \nda Previsão] <>\"\",IF(DadosClientesPotencial[Fim  \nda Previsão] = \"Novembro\",DadosClientesPotencial[Previsão  Ponderada],0),\"\"),\"\")","v":""},{"$f":"IFERROR(IF(DadosClientesPotencial[Fim  \nda Previsão] <>\"\",IF(DadosClientesPotencial[Fim  \nda Previsão] = \"Dezembro\",DadosClientesPotencial[Previsão  Ponderada],0),\"\"),\"\")","v":""}]
[null,{"$f":"IFERROR(IF(AND(DadosClientesPotencial[Nome do Cliente em Potencial] <> \"\", ROW(PrevisãoVendas[Nome do cliente em potencial])<>ÚltimaEntrada),DadosClientesPotencial[Nome do Cliente em Potencial], \"\"),\"\")","v":""},{"$f":"IFERROR(IF(DadosClientesPotencial[Fim  \nda Previsão] <>\"\",IF(DadosClientesPotencial[Fim  \nda Previsão]= \"Janeiro\",DadosClientesPotencial[Previsão  Ponderada],0),\"\"),\"\")","v":""},{"$f":"IFERROR(IF(DadosClientesPotencial[Fim  \nda Previsão] <>\"\",IF(DadosClientesPotencial[Fim  \nda Previsão] = \"Fevereiro\",DadosClientesPotencial[Previsão  Ponderada],0),\"\"),\"\")","v":""},{"$f":"IFERROR(IF(DadosClientesPotencial[Fim  \nda Previsão] <>\"\",IF(DadosClientesPotencial[Fim  \nda Previsão] = \"Março\",DadosClientesPotencial[Previsão  Ponderada],0),\"\"),\"\")","v":""},{"$f":"IFERROR(IF(DadosClientesPotencial[Fim  \nda Previsão] <>\"\",IF(DadosClientesPotencial[Fim  \nda Previsão] = \"Abril\",DadosClientesPotencial[Previsão  Ponderada],0),\"\"),\"\")","v":""},{"$f":"IFERROR(IF(DadosClientesPotencial[Fim  \nda Previsão] <>\"\",IF(DadosClientesPotencial[Fim  \nda Previsão] = \"Maio\",DadosClientesPotencial[Previsão  Ponderada],0),\"\"),\"\")","v":""},{"$f":"IFERROR(IF(DadosClientesPotencial[Fim  \nda Previsão] <>\"\",IF(DadosClientesPotencial[Fim  \nda Previsão] = \"Junho\",DadosClientesPotencial[Previsão  Ponderada],0),\"\"),\"\")","v":""},{"$f":"IFERROR(IF(DadosClientesPotencial[Fim  \nda Previsão] <>\"\",IF(DadosClientesPotencial[Fim  \nda Previsão] = \"Julho\",DadosClientesPotencial[Previsão  Ponderada],0),\"\"),\"\")","v":""},{"$f":"IFERROR(IF(DadosClientesPotencial[Fim  \nda Previsão] <>\"\",IF(DadosClientesPotencial[Fim  \nda Previsão] = \"Agosto\",DadosClientesPotencial[Previsão  Ponderada],0),\"\"),\"\")","v":""},{"$f":"IFERROR(IF(DadosClientesPotencial[Fim  \nda Previsão] <>\"\",IF(DadosClientesPotencial[Fim  \nda Previsão] = \"Setembro\",DadosClientesPotencial[Previsão  Ponderada],0),\"\"),\"\")","v":""},{"$f":"IFERROR(IF(DadosClientesPotencial[Fim  \nda Previsão] <>\"\",IF(DadosClientesPotencial[Fim  \nda Previsão] = \"Outubro\",DadosClientesPotencial[Previsão  Ponderada],0),\"\"),\"\")","v":""},{"$f":"IFERROR(IF(DadosClientesPotencial[Fim  \nda Previsão] <>\"\",IF(DadosClientesPotencial[Fim  \nda Previsão] = \"Novembro\",DadosClientesPotencial[Previsão  Ponderada],0),\"\"),\"\")","v":""},{"$f":"IFERROR(IF(DadosClientesPotencial[Fim  \nda Previsão] <>\"\",IF(DadosClientesPotencial[Fim  \nda Previsão] = \"Dezembro\",DadosClientesPotencial[Previsão  Ponderada],0),\"\"),\"\")","v":""}]
[null,{"$f":"IFERROR(IF(AND(DadosClientesPotencial[Nome do Cliente em Potencial] <> \"\", ROW(PrevisãoVendas[Nome do cliente em potencial])<>ÚltimaEntrada),DadosClientesPotencial[Nome do Cliente em Potencial], \"\"),\"\")","v":""},{"$f":"IFERROR(IF(DadosClientesPotencial[Fim  \nda Previsão] <>\"\",IF(DadosClientesPotencial[Fim  \nda Previsão]= \"Janeiro\",DadosClientesPotencial[Previsão  Ponderada],0),\"\"),\"\")","v":""},{"$f":"IFERROR(IF(DadosClientesPotencial[Fim  \nda Previsão] <>\"\",IF(DadosClientesPotencial[Fim  \nda Previsão] = \"Fevereiro\",DadosClientesPotencial[Previsão  Ponderada],0),\"\"),\"\")","v":""},{"$f":"IFERROR(IF(DadosClientesPotencial[Fim  \nda Previsão] <>\"\",IF(DadosClientesPotencial[Fim  \nda Previsão] = \"Março\",DadosClientesPotencial[Previsão  Ponderada],0),\"\"),\"\")","v":""},{"$f":"IFERROR(IF(DadosClientesPotencial[Fim  \nda Previsão] <>\"\",IF(DadosClientesPotencial[Fim  \nda Previsão] = \"Abril\",DadosClientesPotencial[Previsão  Ponderada],0),\"\"),\"\")","v":""},{"$f":"IFERROR(IF(DadosClientesPotencial[Fim  \nda Previsão] <>\"\",IF(DadosClientesPotencial[Fim  \nda Previsão] = \"Maio\",DadosClientesPotencial[Previsão  Ponderada],0),\"\"),\"\")","v":""},{"$f":"IFERROR(IF(DadosClientesPotencial[Fim  \nda Previsão] <>\"\",IF(DadosClientesPotencial[Fim  \nda Previsão] = \"Junho\",DadosClientesPotencial[Previsão  Ponderada],0),\"\"),\"\")","v":""},{"$f":"IFERROR(IF(DadosClientesPotencial[Fim  \nda Previsão] <>\"\",IF(DadosClientesPotencial[Fim  \nda Previsão] = \"Julho\",DadosClientesPotencial[Previsão  Ponderada],0),\"\"),\"\")","v":""},{"$f":"IFERROR(IF(DadosClientesPotencial[Fim  \nda Previsão] <>\"\",IF(DadosClientesPotencial[Fim  \nda Previsão] = \"Agosto\",DadosClientesPotencial[Previsão  Ponderada],0),\"\"),\"\")","v":""},{"$f":"IFERROR(IF(DadosClientesPotencial[Fim  \nda Previsão] <>\"\",IF(DadosClientesPotencial[Fim  \nda Previsão] = \"Setembro\",DadosClientesPotencial[Previsão  Ponderada],0),\"\"),\"\")","v":""},{"$f":"IFERROR(IF(DadosClientesPotencial[Fim  \nda Previsão] <>\"\",IF(DadosClientesPotencial[Fim  \nda Previsão] = \"Outubro\",DadosClientesPotencial[Previsão  Ponderada],0),\"\"),\"\")","v":""},{"$f":"IFERROR(IF(DadosClientesPotencial[Fim  \nda Previsão] <>\"\",IF(DadosClientesPotencial[Fim  \nda Previsão] = \"Novembro\",DadosClientesPotencial[Previsão  Ponderada],0),\"\"),\"\")","v":""},{"$f":"IFERROR(IF(DadosClientesPotencial[Fim  \nda Previsão] <>\"\",IF(DadosClientesPotencial[Fim  \nda Previsão] = \"Dezembro\",DadosClientesPotencial[Previsão  Ponderada],0),\"\"),\"\")","v":""}]
[null,{"$f":"IFERROR(IF(AND(DadosClientesPotencial[Nome do Cliente em Potencial] <> \"\", ROW(PrevisãoVendas[Nome do cliente em potencial])<>ÚltimaEntrada),DadosClientesPotencial[Nome do Cliente em Potencial], \"\"),\"\")","v":""},{"$f":"IFERROR(IF(DadosClientesPotencial[Fim  \nda Previsão] <>\"\",IF(DadosClientesPotencial[Fim  \nda Previsão]= \"Janeiro\",DadosClientesPotencial[Previsão  Ponderada],0),\"\"),\"\")","v":""},{"$f":"IFERROR(IF(DadosClientesPotencial[Fim  \nda Previsão] <>\"\",IF(DadosClientesPotencial[Fim  \nda Previsão] = \"Fevereiro\",DadosClientesPotencial[Previsão  Ponderada],0),\"\"),\"\")","v":""},{"$f":"IFERROR(IF(DadosClientesPotencial[Fim  \nda Previsão] <>\"\",IF(DadosClientesPotencial[Fim  \nda Previsão] = \"Março\",DadosClientesPotencial[Previsão  Ponderada],0),\"\"),\"\")","v":""},{"$f":"IFERROR(IF(DadosClientesPotencial[Fim  \nda Previsão] <>\"\",IF(DadosClientesPotencial[Fim  \nda Previsão] = \"Abril\",DadosClientesPotencial[Previsão  Ponderada],0),\"\"),\"\")","v":""},{"$f":"IFERROR(IF(DadosClientesPotencial[Fim  \nda Previsão] <>\"\",IF(DadosClientesPotencial[Fim  \nda Previsão] = \"Maio\",DadosClientesPotencial[Previsão  Ponderada],0),\"\"),\"\")","v":""},{"$f":"IFERROR(IF(DadosClientesPotencial[Fim  \nda Previsão] <>\"\",IF(DadosClientesPotencial[Fim  \nda Previsão] = \"Junho\",DadosClientesPotencial[Previsão  Ponderada],0),\"\"),\"\")","v":""},{"$f":"IFERROR(IF(DadosClientesPotencial[Fim  \nda Previsão] <>\"\",IF(DadosClientesPotencial[Fim  \nda Previsão] = \"Julho\",DadosClientesPotencial[Previsão  Ponderada],0),\"\"),\"\")","v":""},{"$f":"IFERROR(IF(DadosClientesPotencial[Fim  \nda Previsão] <>\"\",IF(DadosClientesPotencial[Fim  \nda Previsão] = \"Agosto\",DadosClientesPotencial[Previsão  Ponderada],0),\"\"),\"\")","v":""},{"$f":"IFERROR(IF(DadosClientesPotencial[Fim  \nda Previsão] <>\"\",IF(DadosClientesPotencial[Fim  \nda Previsão] = \"Setembro\",DadosClientesPotencial[Previsão  Ponderada],0),\"\"),\"\")","v":""},{"$f":"IFERROR(IF(DadosClientesPotencial[Fim  \nda Previsão] <>\"\",IF(DadosClientesPotencial[Fim  \nda Previsão] = \"Outubro\",DadosClientesPotencial[Previsão  Ponderada],0),\"\"),\"\")","v":""},{"$f":"IFERROR(IF(DadosClientesPotencial[Fim  \nda Previsão] <>\"\",IF(DadosClientesPotencial[Fim  \nda Previsão] = \"Novembro\",DadosClientesPotencial[Previsão  Ponderada],0),\"\"),\"\")","v":""},{"$f":"IFERROR(IF(DadosClientesPotencial[Fim  \nda Previsão] <>\"\",IF(DadosClientesPotencial[Fim  \nda Previsão] = \"Dezembro\",DadosClientesPotencial[Previsão  Ponderada],0),\"\"),\"\")","v":""}]
[null,{"$f":"IFERROR(IF(AND(DadosClientesPotencial[Nome do Cliente em Potencial] <> \"\", ROW(PrevisãoVendas[Nome do cliente em potencial])<>ÚltimaEntrada),DadosClientesPotencial[Nome do Cliente em Potencial], \"\"),\"\")","v":""},{"$f":"IFERROR(IF(DadosClientesPotencial[Fim  \nda Previsão] <>\"\",IF(DadosClientesPotencial[Fim  \nda Previsão]= \"Janeiro\",DadosClientesPotencial[Previsão  Ponderada],0),\"\"),\"\")","v":""},{"$f":"IFERROR(IF(DadosClientesPotencial[Fim  \nda Previsão] <>\"\",IF(DadosClientesPotencial[Fim  \nda Previsão] = \"Fevereiro\",DadosClientesPotencial[Previsão  Ponderada],0),\"\"),\"\")","v":""},{"$f":"IFERROR(IF(DadosClientesPotencial[Fim  \nda Previsão] <>\"\",IF(DadosClientesPotencial[Fim  \nda Previsão] = \"Março\",DadosClientesPotencial[Previsão  Ponderada],0),\"\"),\"\")","v":""},{"$f":"IFERROR(IF(DadosClientesPotencial[Fim  \nda Previsão] <>\"\",IF(DadosClientesPotencial[Fim  \nda Previsão] = \"Abril\",DadosClientesPotencial[Previsão  Ponderada],0),\"\"),\"\")","v":""},{"$f":"IFERROR(IF(DadosClientesPotencial[Fim  \nda Previsão] <>\"\",IF(DadosClientesPotencial[Fim  \nda Previsão] = \"Maio\",DadosClientesPotencial[Previsão  Ponderada],0),\"\"),\"\")","v":""},{"$f":"IFERROR(IF(DadosClientesPotencial[Fim  \nda Previsão] <>\"\",IF(DadosClientesPotencial[Fim  \nda Previsão] = \"Junho\",DadosClientesPotencial[Previsão  Ponderada],0),\"\"),\"\")","v":""},{"$f":"IFERROR(IF(DadosClientesPotencial[Fim  \nda Previsão] <>\"\",IF(DadosClientesPotencial[Fim  \nda Previsão] = \"Julho\",DadosClientesPotencial[Previsão  Ponderada],0),\"\"),\"\")","v":""},{"$f":"IFERROR(IF(DadosClientesPotencial[Fim  \nda Previsão] <>\"\",IF(DadosClientesPotencial[Fim  \nda Previsão] = \"Agosto\",DadosClientesPotencial[Previsão  Ponderada],0),\"\"),\"\")","v":""},{"$f":"IFERROR(IF(DadosClientesPotencial[Fim  \nda Previsão] <>\"\",IF(DadosClientesPotencial[Fim  \nda Previsão] = \"Setembro\",DadosClientesPotencial[Previsão  Ponderada],0),\"\"),\"\")","v":""},{"$f":"IFERROR(IF(DadosClientesPotencial[Fim  \nda Previsão] <>\"\",IF(DadosClientesPotencial[Fim  \nda Previsão] = \"Outubro\",DadosClientesPotencial[Previsão  Ponderada],0),\"\"),\"\")","v":""},{"$f":"IFERROR(IF(DadosClientesPotencial[Fim  \nda Previsão] <>\"\",IF(DadosClientesPotencial[Fim  \nda Previsão] = \"Novembro\",DadosClientesPotencial[Previsão  Ponderada],0),\"\"),\"\")","v":""},{"$f":"IFERROR(IF(DadosClientesPotencial[Fim  \nda Previsão] <>\"\",IF(DadosClientesPotencial[Fim  \nda Previsão] = \"Dezembro\",DadosClientesPotencial[Previsão  Ponderada],0),\"\"),\"\")","v":""}]
[null,{"$f":"IFERROR(IF(AND(DadosClientesPotencial[Nome do Cliente em Potencial] <> \"\", ROW(PrevisãoVendas[Nome do cliente em potencial])<>ÚltimaEntrada),DadosClientesPotencial[Nome do Cliente em Potencial], \"\"),\"\")","v":""},{"$f":"IFERROR(IF(DadosClientesPotencial[Fim  \nda Previsão] <>\"\",IF(DadosClientesPotencial[Fim  \nda Previsão]= \"Janeiro\",DadosClientesPotencial[Previsão  Ponderada],0),\"\"),\"\")","v":""},{"$f":"IFERROR(IF(DadosClientesPotencial[Fim  \nda Previsão] <>\"\",IF(DadosClientesPotencial[Fim  \nda Previsão] = \"Fevereiro\",DadosClientesPotencial[Previsão  Ponderada],0),\"\"),\"\")","v":""},{"$f":"IFERROR(IF(DadosClientesPotencial[Fim  \nda Previsão] <>\"\",IF(DadosClientesPotencial[Fim  \nda Previsão] = \"Março\",DadosClientesPotencial[Previsão  Ponderada],0),\"\"),\"\")","v":""},{"$f":"IFERROR(IF(DadosClientesPotencial[Fim  \nda Previsão] <>\"\",IF(DadosClientesPotencial[Fim  \nda Previsão] = \"Abril\",DadosClientesPotencial[Previsão  Ponderada],0),\"\"),\"\")","v":""},{"$f":"IFERROR(IF(DadosClientesPotencial[Fim  \nda Previsão] <>\"\",IF(DadosClientesPotencial[Fim  \nda Previsão] = \"Maio\",DadosClientesPotencial[Previsão  Ponderada],0),\"\"),\"\")","v":""},{"$f":"IFERROR(IF(DadosClientesPotencial[Fim  \nda Previsão] <>\"\",IF(DadosClientesPotencial[Fim  \nda Previsão] = \"Junho\",DadosClientesPotencial[Previsão  Ponderada],0),\"\"),\"\")","v":""},{"$f":"IFERROR(IF(DadosClientesPotencial[Fim  \nda Previsão] <>\"\",IF(DadosClientesPotencial[Fim  \nda Previsão] = \"Julho\",DadosClientesPotencial[Previsão  Ponderada],0),\"\"),\"\")","v":""},{"$f":"IFERROR(IF(DadosClientesPotencial[Fim  \nda Previsão] <>\"\",IF(DadosClientesPotencial[Fim  \nda Previsão] = \"Agosto\",DadosClientesPotencial[Previsão  Ponderada],0),\"\"),\"\")","v":""},{"$f":"IFERROR(IF(DadosClientesPotencial[Fim  \nda Previsão] <>\"\",IF(DadosClientesPotencial[Fim  \nda Previsão] = \"Setembro\",DadosClientesPotencial[Previsão  Ponderada],0),\"\"),\"\")","v":""},{"$f":"IFERROR(IF(DadosClientesPotencial[Fim  \nda Previsão] <>\"\",IF(DadosClientesPotencial[Fim  \nda Previsão] = \"Outubro\",DadosClientesPotencial[Previsão  Ponderada],0),\"\"),\"\")","v":""},{"$f":"IFERROR(IF(DadosClientesPotencial[Fim  \nda Previsão] <>\"\",IF(DadosClientesPotencial[Fim  \nda Previsão] = \"Novembro\",DadosClientesPotencial[Previsão  Ponderada],0),\"\"),\"\")","v":""},{"$f":"IFERROR(IF(DadosClientesPotencial[Fim  \nda Previsão] <>\"\",IF(DadosClientesPotencial[Fim  \nda Previsão] = \"Dezembro\",DadosClientesPotencial[Previsão  Ponderada],0),\"\"),\"\")","v":""}]
[null,{"$f":"IFERROR(IF(AND(DadosClientesPotencial[Nome do Cliente em Potencial] <> \"\", ROW(PrevisãoVendas[Nome do cliente em potencial])<>ÚltimaEntrada),DadosClientesPotencial[Nome do Cliente em Potencial], \"\"),\"\")","v":""},{"$f":"IFERROR(IF(DadosClientesPotencial[Fim  \nda Previsão] <>\"\",IF(DadosClientesPotencial[Fim  \nda Previsão]= \"Janeiro\",DadosClientesPotencial[Previsão  Ponderada],0),\"\"),\"\")","v":""},{"$f":"IFERROR(IF(DadosClientesPotencial[Fim  \nda Previsão] <>\"\",IF(DadosClientesPotencial[Fim  \nda Previsão] = \"Fevereiro\",DadosClientesPotencial[Previsão  Ponderada],0),\"\"),\"\")","v":""},{"$f":"IFERROR(IF(DadosClientesPotencial[Fim  \nda Previsão] <>\"\",IF(DadosClientesPotencial[Fim  \nda Previsão] = \"Março\",DadosClientesPotencial[Previsão  Ponderada],0),\"\"),\"\")","v":""},{"$f":"IFERROR(IF(DadosClientesPotencial[Fim  \nda Previsão] <>\"\",IF(DadosClientesPotencial[Fim  \nda Previsão] = \"Abril\",DadosClientesPotencial[Previsão  Ponderada],0),\"\"),\"\")","v":""},{"$f":"IFERROR(IF(DadosClientesPotencial[Fim  \nda Previsão] <>\"\",IF(DadosClientesPotencial[Fim  \nda Previsão] = \"Maio\",DadosClientesPotencial[Previsão  Ponderada],0),\"\"),\"\")","v":""},{"$f":"IFERROR(IF(DadosClientesPotencial[Fim  \nda Previsão] <>\"\",IF(DadosClientesPotencial[Fim  \nda Previsão] = \"Junho\",DadosClientesPotencial[Previsão  Ponderada],0),\"\"),\"\")","v":""},{"$f":"IFERROR(IF(DadosClientesPotencial[Fim  \nda Previsão] <>\"\",IF(DadosClientesPotencial[Fim  \nda Previsão] = \"Julho\",DadosClientesPotencial[Previsão  Ponderada],0),\"\"),\"\")","v":""},{"$f":"IFERROR(IF(DadosClientesPotencial[Fim  \nda Previsão] <>\"\",IF(DadosClientesPotencial[Fim  \nda Previsão] = \"Agosto\",DadosClientesPotencial[Previsão  Ponderada],0),\"\"),\"\")","v":""},{"$f":"IFERROR(IF(DadosClientesPotencial[Fim  \nda Previsão] <>\"\",IF(DadosClientesPotencial[Fim  \nda Previsão] = \"Setembro\",DadosClientesPotencial[Previsão  Ponderada],0),\"\"),\"\")","v":""},{"$f":"IFERROR(IF(DadosClientesPotencial[Fim  \nda Previsão] <>\"\",IF(DadosClientesPotencial[Fim  \nda Previsão] = \"Outubro\",DadosClientesPotencial[Previsão  Ponderada],0),\"\"),\"\")","v":""},{"$f":"IFERROR(IF(DadosClientesPotencial[Fim  \nda Previsão] <>\"\",IF(DadosClientesPotencial[Fim  \nda Previsão] = \"Novembro\",DadosClientesPotencial[Previsão  Ponderada],0),\"\"),\"\")","v":""},{"$f":"IFERROR(IF(DadosClientesPotencial[Fim  \nda Previsão] <>\"\",IF(DadosClientesPotencial[Fim  \nda Previsão] = \"Dezembro\",DadosClientesPotencial[Previsão  Ponderada],0),\"\"),\"\")","v":""}]
[null,{"$f":"IFERROR(IF(AND(DadosClientesPotencial[Nome do Cliente em Potencial] <> \"\", ROW(PrevisãoVendas[Nome do cliente em potencial])<>ÚltimaEntrada),DadosClientesPotencial[Nome do Cliente em Potencial], \"\"),\"\")","v":""},{"$f":"IFERROR(IF(DadosClientesPotencial[Fim  \nda Previsão] <>\"\",IF(DadosClientesPotencial[Fim  \nda Previsão]= \"Janeiro\",DadosClientesPotencial[Previsão  Ponderada],0),\"\"),\"\")","v":""},{"$f":"IFERROR(IF(DadosClientesPotencial[Fim  \nda Previsão] <>\"\",IF(DadosClientesPotencial[Fim  \nda Previsão] = \"Fevereiro\",DadosClientesPotencial[Previsão  Ponderada],0),\"\"),\"\")","v":""},{"$f":"IFERROR(IF(DadosClientesPotencial[Fim  \nda Previsão] <>\"\",IF(DadosClientesPotencial[Fim  \nda Previsão] = \"Março\",DadosClientesPotencial[Previsão  Ponderada],0),\"\"),\"\")","v":""},{"$f":"IFERROR(IF(DadosClientesPotencial[Fim  \nda Previsão] <>\"\",IF(DadosClientesPotencial[Fim  \nda Previsão] = \"Abril\",DadosClientesPotencial[Previsão  Ponderada],0),\"\"),\"\")","v":""},{"$f":"IFERROR(IF(DadosClientesPotencial[Fim  \nda Previsão] <>\"\",IF(DadosClientesPotencial[Fim  \nda Previsão] = \"Maio\",DadosClientesPotencial[Previsão  Ponderada],0),\"\"),\"\")","v":""},{"$f":"IFERROR(IF(DadosClientesPotencial[Fim  \nda Previsão] <>\"\",IF(DadosClientesPotencial[Fim  \nda Previsão] = \"Junho\",DadosClientesPotencial[Previsão  Ponderada],0),\"\"),\"\")","v":""},{"$f":"IFERROR(IF(DadosClientesPotencial[Fim  \nda Previsão] <>\"\",IF(DadosClientesPotencial[Fim  \nda Previsão] = \"Julho\",DadosClientesPotencial[Previsão  Ponderada],0),\"\"),\"\")","v":""},{"$f":"IFERROR(IF(DadosClientesPotencial[Fim  \nda Previsão] <>\"\",IF(DadosClientesPotencial[Fim  \nda Previsão] = \"Agosto\",DadosClientesPotencial[Previsão  Ponderada],0),\"\"),\"\")","v":""},{"$f":"IFERROR(IF(DadosClientesPotencial[Fim  \nda Previsão] <>\"\",IF(DadosClientesPotencial[Fim  \nda Previsão] = \"Setembro\",DadosClientesPotencial[Previsão  Ponderada],0),\"\"),\"\")","v":""},{"$f":"IFERROR(IF(DadosClientesPotencial[Fim  \nda Previsão] <>\"\",IF(DadosClientesPotencial[Fim  \nda Previsão] = \"Outubro\",DadosClientesPotencial[Previsão  Ponderada],0),\"\"),\"\")","v":""},{"$f":"IFERROR(IF(DadosClientesPotencial[Fim  \nda Previsão] <>\"\",IF(DadosClientesPotencial[Fim  \nda Previsão] = \"Novembro\",DadosClientesPotencial[Previsão  Ponderada],0),\"\"),\"\")","v":""},{"$f":"IFERROR(IF(DadosClientesPotencial[Fim  \nda Previsão] <>\"\",IF(DadosClientesPotencial[Fim  \nda Previsão] = \"Dezembro\",DadosClientesPotencial[Previsão  Ponderada],0),\"\"),\"\")","v":""}]
[null,{"$f":"IFERROR(IF(AND(DadosClientesPotencial[Nome do Cliente em Potencial] <> \"\", ROW(PrevisãoVendas[Nome do cliente em potencial])<>ÚltimaEntrada),DadosClientesPotencial[Nome do Cliente em Potencial], \"\"),\"\")","v":""},{"$f":"IFERROR(IF(DadosClientesPotencial[Fim  \nda Previsão] <>\"\",IF(DadosClientesPotencial[Fim  \nda Previsão]= \"Janeiro\",DadosClientesPotencial[Previsão  Ponderada],0),\"\"),\"\")","v":""},{"$f":"IFERROR(IF(DadosClientesPotencial[Fim  \nda Previsão] <>\"\",IF(DadosClientesPotencial[Fim  \nda Previsão] = \"Fevereiro\",DadosClientesPotencial[Previsão  Ponderada],0),\"\"),\"\")","v":""},{"$f":"IFERROR(IF(DadosClientesPotencial[Fim  \nda Previsão] <>\"\",IF(DadosClientesPotencial[Fim  \nda Previsão] = \"Março\",DadosClientesPotencial[Previsão  Ponderada],0),\"\"),\"\")","v":""},{"$f":"IFERROR(IF(DadosClientesPotencial[Fim  \nda Previsão] <>\"\",IF(DadosClientesPotencial[Fim  \nda Previsão] = \"Abril\",DadosClientesPotencial[Previsão  Ponderada],0),\"\"),\"\")","v":""},{"$f":"IFERROR(IF(DadosClientesPotencial[Fim  \nda Previsão] <>\"\",IF(DadosClientesPotencial[Fim  \nda Previsão] = \"Maio\",DadosClientesPotencial[Previsão  Ponderada],0),\"\"),\"\")","v":""},{"$f":"IFERROR(IF(DadosClientesPotencial[Fim  \nda Previsão] <>\"\",IF(DadosClientesPotencial[Fim  \nda Previsão] = \"Junho\",DadosClientesPotencial[Previsão  Ponderada],0),\"\"),\"\")","v":""},{"$f":"IFERROR(IF(DadosClientesPotencial[Fim  \nda Previsão] <>\"\",IF(DadosClientesPotencial[Fim  \nda Previsão] = \"Julho\",DadosClientesPotencial[Previsão  Ponderada],0),\"\"),\"\")","v":""},{"$f":"IFERROR(IF(DadosClientesPotencial[Fim  \nda Previsão] <>\"\",IF(DadosClientesPotencial[Fim  \nda Previsão] = \"Agosto\",DadosClientesPotencial[Previsão  Ponderada],0),\"\"),\"\")","v":""},{"$f":"IFERROR(IF(DadosClientesPotencial[Fim  \nda Previsão] <>\"\",IF(DadosClientesPotencial[Fim  \nda Previsão] = \"Setembro\",DadosClientesPotencial[Previsão  Ponderada],0),\"\"),\"\")","v":""},{"$f":"IFERROR(IF(DadosClientesPotencial[Fim  \nda Previsão] <>\"\",IF(DadosClientesPotencial[Fim  \nda Previsão] = \"Outubro\",DadosClientesPotencial[Previsão  Ponderada],0),\"\"),\"\")","v":""},{"$f":"IFERROR(IF(DadosClientesPotencial[Fim  \nda Previsão] <>\"\",IF(DadosClientesPotencial[Fim  \nda Previsão] = \"Novembro\",DadosClientesPotencial[Previsão  Ponderada],0),\"\"),\"\")","v":""},{"$f":"IFERROR(IF(DadosClientesPotencial[Fim  \nda Previsão] <>\"\",IF(DadosClientesPotencial[Fim  \nda Previsão] = \"Dezembro\",DadosClientesPotencial[Previsão  Ponderada],0),\"\"),\"\")","v":""}]
[null,{"$f":"IFERROR(IF(AND(DadosClientesPotencial[Nome do Cliente em Potencial] <> \"\", ROW(PrevisãoVendas[Nome do cliente em potencial])<>ÚltimaEntrada),DadosClientesPotencial[Nome do Cliente em Potencial], \"\"),\"\")","v":""},{"$f":"IFERROR(IF(DadosClientesPotencial[Fim  \nda Previsão] <>\"\",IF(DadosClientesPotencial[Fim  \nda Previsão]= \"Janeiro\",DadosClientesPotencial[Previsão  Ponderada],0),\"\"),\"\")","v":""},{"$f":"IFERROR(IF(DadosClientesPotencial[Fim  \nda Previsão] <>\"\",IF(DadosClientesPotencial[Fim  \nda Previsão] = \"Fevereiro\",DadosClientesPotencial[Previsão  Ponderada],0),\"\"),\"\")","v":""},{"$f":"IFERROR(IF(DadosClientesPotencial[Fim  \nda Previsão] <>\"\",IF(DadosClientesPotencial[Fim  \nda Previsão] = \"Março\",DadosClientesPotencial[Previsão  Ponderada],0),\"\"),\"\")","v":""},{"$f":"IFERROR(IF(DadosClientesPotencial[Fim  \nda Previsão] <>\"\",IF(DadosClientesPotencial[Fim  \nda Previsão] = \"Abril\",DadosClientesPotencial[Previsão  Ponderada],0),\"\"),\"\")","v":""},{"$f":"IFERROR(IF(DadosClientesPotencial[Fim  \nda Previsão] <>\"\",IF(DadosClientesPotencial[Fim  \nda Previsão] = \"Maio\",DadosClientesPotencial[Previsão  Ponderada],0),\"\"),\"\")","v":""},{"$f":"IFERROR(IF(DadosClientesPotencial[Fim  \nda Previsão] <>\"\",IF(DadosClientesPotencial[Fim  \nda Previsão] = \"Junho\",DadosClientesPotencial[Previsão  Ponderada],0),\"\"),\"\")","v":""},{"$f":"IFERROR(IF(DadosClientesPotencial[Fim  \nda Previsão] <>\"\",IF(DadosClientesPotencial[Fim  \nda Previsão] = \"Julho\",DadosClientesPotencial[Previsão  Ponderada],0),\"\"),\"\")","v":""},{"$f":"IFERROR(IF(DadosClientesPotencial[Fim  \nda Previsão] <>\"\",IF(DadosClientesPotencial[Fim  \nda Previsão] = \"Agosto\",DadosClientesPotencial[Previsão  Ponderada],0),\"\"),\"\")","v":""},{"$f":"IFERROR(IF(DadosClientesPotencial[Fim  \nda Previsão] <>\"\",IF(DadosClientesPotencial[Fim  \nda Previsão] = \"Setembro\",DadosClientesPotencial[Previsão  Ponderada],0),\"\"),\"\")","v":""},{"$f":"IFERROR(IF(DadosClientesPotencial[Fim  \nda Previsão] <>\"\",IF(DadosClientesPotencial[Fim  \nda Previsão] = \"Outubro\",DadosClientesPotencial[Previsão  Ponderada],0),\"\"),\"\")","v":""},{"$f":"IFERROR(IF(DadosClientesPotencial[Fim  \nda Previsão] <>\"\",IF(DadosClientesPotencial[Fim  \nda Previsão] = \"Novembro\",DadosClientesPotencial[Previsão  Ponderada],0),\"\"),\"\")","v":""},{"$f":"IFERROR(IF(DadosClientesPotencial[Fim  \nda Previsão] <>\"\",IF(DadosClientesPotencial[Fim  \nda Previsão] = \"Dezembro\",DadosClientesPotencial[Previsão  Ponderada],0),\"\"),\"\")","v":""}]
[null,"Total",{"$f":"SUBTOTAL(109,PrevisãoVendas[Previsão para  \njaneiro])","v":{"v":270000,"d":"R$ 270,000"}},{"$f":"SUBTOTAL(109,PrevisãoVendas[Previsão para  \nfevereiro])","v":{"v":20000,"d":"R$ 20,000"}},{"$f":"SUBTOTAL(109,PrevisãoVendas[Previsão para  \nmarço])","v":{"v":20000,"d":"R$ 20,000"}},{"$f":"SUBTOTAL(109,PrevisãoVendas[Previsão para  \nabril])","v":{"v":0,"d":"R$ 0"}},{"$f":"SUBTOTAL(109,PrevisãoVendas[Previsão para  \nmaio])","v":{"v":0,"d":"R$ 0"}},{"$f":"SUBTOTAL(109,PrevisãoVendas[Previsão para  \njunho])","v":{"v":0,"d":"R$ 0"}},{"$f":"SUBTOTAL(109,PrevisãoVendas[Previsão para julho])","v":{"v":0,"d":"R$ 0"}},{"$f":"SUBTOTAL(109,PrevisãoVendas[Previsão para  \nagosto])","v":{"v":0,"d":"R$ 0"}},{"$f":"SUBTOTAL(109,PrevisãoVendas[Previsão para  \nsetembro])","v":{"v":0,"d":"R$ 0"}},{"$f":"SUBTOTAL(109,PrevisãoVendas[Setembro para  \noutubro])","v":{"v":0,"d":"R$ 0"}},{"$f":"SUBTOTAL(109,PrevisãoVendas[Previsão para  \nnovembro])","v":{"v":0,"d":"R$ 0"}},{"$f":"SUBTOTAL(109,PrevisãoVendas[Previsão para  \ndezembro])","v":{"v":0,"d":"R$ 0"}}]
[null,"Total Acumulado",{"$f":"C20","v":{"v":270000,"d":"R$ 270,000"}},{"$f":"C21+D20","v":{"v":290000,"d":"R$ 290,000"}},{"$f":"D21+E20","v":{"v":310000,"d":"R$ 310,000"}},{"$f":"E21+F20","v":{"v":310000,"d":"R$ 310,000"}},{"$f":"F21+G20","v":{"v":310000,"d":"R$ 310,000"}},{"$f":"G21+H20","v":{"v":310000,"d":"R$ 310,000"}},{"$f":"H21+I20","v":{"v":310000,"d":"R$ 310,000"}},{"$f":"I21+J20","v":{"v":310000,"d":"R$ 310,000"}},{"$f":"J21+K20","v":{"v":310000,"d":"R$ 310,000"}},{"$f":"K21+L20","v":{"v":310000,"d":"R$ 310,000"}},{"$f":"L21+M20","v":{"v":310000,"d":"R$ 310,000"}},{"$f":"M21+N20","v":{"v":310000,"d":"R$ 310,000"}}]

{"sheet":"Previsão Ponderada Mensal","index":2,"n_rows":3,"n_cols":2,"rows_kept":3}
[null,{"$f":"Nome_Empresa","v":"Nome da empresa"}]
[null,"Previsão Ponderada Mensal"]
[null," "]